lending/lending_fUSD_20250424
["ID","MTS","AMOUNT","RATE_DAILY","PERIOD"]
[358858580,1745489440584,-9598.42249127,0.00024433,2]
[358858582,1745489440593,-220.14405359,0.00024434,2]
[358858584,1745489440607,-1077.18642667,0.00024437,2]
[358858586,1745489440617,-220.14405359,0.00024441,2]
[358858588,1745489440627,-112351.0393572,0.00024442,2]
[358858590,1745489440637,-2528.51871158,0.00024442,2]
[358858592,1745489440647,-358.28506387,0.00024442,2]
[358858594,1745489440657,-9598.42249127,0.00024443,2]
[358858596,1745489440668,-3097.10535533,0.00024446,2]
[358858598,1745489440679,-1599.737082,0.00024446,2]
[358858600,1745489440688,-1170.40804101,0.00024446,2]
[358858602,1745489440698,-1931.73616606,0.00024448,2]
[358858604,1745489440711,-112351.0393572,0.00024448,2]
[358858606,1745489440721,-1170.40804101,0.0002445,2]
[358858608,1745489440731,-1931.73616606,0.00024451,2]
[358858610,1745489440742,-2296.07182147,0.00024452,2]
[358858612,1745489440752,-2357.8094765,0.00024452,2]
[358858614,1745489440763,-842.91098081,0.00024453,2]
[358858616,1745489440772,-2357.8094765,0.00024453,2]
[358858618,1745489440783,-9598.42249127,0.00024453,2]
[358858620,1745489440793,-3097.10535533,0.00024453,2]
[358858622,1745489440803,-661.30010545,0.00024454,2]
[358858624,1745489440813,-9598.42249127,0.00024454,2]
[358858626,1745489440823,-3097.10535533,0.00024458,2]
[358858628,1745489440832,-2528.51871158,0.00024459,2]
[358858630,1745489440842,-661.30010545,0.00024459,2]
[358858633,1745489440854,-2357.8094765,0.00024462,2]
[358858635,1745489440864,-1077.18642667,0.00024465,2]
[358858637,1745489440875,-1599.737082,0.00024467,2]
[358858639,1745489440885,-2357.8094765,0.00024469,2]
[358858641,1745489440895,-1077.18642667,0.00024469,2]
[358858643,1745489440906,-661.30010545,0.0002447,2]
[358858645,1745489440916,-2296.07182147,0.00024472,2]
[358858647,1745489440926,-1077.18642667,0.00024473,2]
[358858649,1745489440935,-2528.51871158,0.00024473,2]
[358858651,1745489440945,-1077.18642667,0.00024473,2]
[358858653,1745489440955,-1599.737082,0.00024475,2]
[358858655,1745489440966,-365.2591502,0.00024476,2]
[358858656,1745489440975,-2296.07182147,0.00024476,2]
[358858657,1745489440985,-112351.0393572,0.00024478,2]
[358858658,1745489440996,-2296.07182147,0.00024479,2]
[358858659,1745489441009,-11683.81644688,0.0002448,2]
[358858660,1745489441019,-1931.73616606,0.0002448,2]
[358858661,1745489441029,-3097.10535533,0.00024481,2]
[358858662,1745489441039,-2296.07182147,0.00024481,2]
[358858663,1745489441048,-1931.73616606,0.00024481,2]
[358858664,1745489441058,-220.14405359,0.00024488,2]
[358858665,1745489441069,-11683.81644688,0.00024488,2]
[358858666,1745489441078,-842.91098081,0.0002449,2]
[358858667,1745489441088,-112351.0393572,0.0002449,2]
[358858668,1745489441098,-365.2591502,0.00024491,2]
[358858669,1745489441108,-2357.8094765,0.00024492,2]
[358858670,1745489441119,-2528.51871158,0.00024492,2]
[358858671,1745489441129,-358.28506387,0.00024492,2]
[358858672,1745489441138,-2357.8094765,0.00024493,2]
[358858673,1745489441148,-1077.18642667,0.00024494,2]
[358858674,1745489441159,-661.30010545,0.00024496,2]
[358858675,1745489441169,-842.91098081,0.00024496,2]
[358858676,1745489441178,-9598.42249127,0.00024496,2]
[358858677,1745489441188,-661.30010545,0.00024497,2]
[358858678,1745489441199,-3097.10535533,0.00024497,2]
[358858679,1745489441208,-11683.81644688,0.00024499,2]
[358858680,1745489441218,-300.0,0.00024798,10]
[358858681,1745489441229,-178.69443148,0.00024798,10]
[358858682,1745489441238,-300.0,0.00024799,10]
[358858683,1745489441248,-300.0,0.00024899,10]
[358858684,1745489441258,-804.23200758,0.0002497,2]
[358858685,1745489441268,-450.0,0.00025,2]
[358858686,1745489441278,-500.0,0.00025467,2]
[358858687,1745489441288,-823.0,0.0002582,2]
[358858688,1745489441298,-300.0,0.00026018,10]
[358858689,1745489441308,-3292.0,0.00026194,2]
[358858690,1745489441318,-304.76,0.000269,2]
[358858691,1745489441329,-305.62,0.000269,2]
[358858692,1745489441341,-500.0,0.00027,2]
[358858693,1745489441354,-796.0,0.00027,2]
[358858694,1745489441364,-1133.0,0.00027,2]
[358858695,1745489441373,-3986.0,0.00027,2]
[358858696,1745489441383,-152.0,0.00027,2]
[358858697,1745489441393,-152.0,0.00027,2]
[358858698,1745489441403,-871.0,0.00027,2]
[358858699,1745489441412,-876.0,0.00027,2]
[358858700,1745489441422,-250.0,0.00027358,2]
[358858701,1745489441432,-181.10945425,0.00027397,2]
[358858702,1745489441443,-700.0,0.00027397,2]
[358858703,1745489441452,-700.0,0.00027397,2]
[358858704,1745489441463,-700.0,0.00027397,2]
[358858706,1745489441474,-700.0,0.00027397,2]
[358858708,1745489441486,-700.0,0.00027397,2]
[358858710,1745489441496,-647.53,0.00027425,30]
[358858712,1745489441507,-186.68,0.00027787,2]
[358858713,1745489441517,-276.79,0.00028,2]
[358858714,1745489441527,-1152.0,0.00028115,2]
[358858715,1745489441536,-4609.0,0.00028659,2]
[358858716,1745489441546,-300.0,0.00028999,10]
[358858717,1745489441556,-200.0,0.00029767,2]
[358858718,1745489441566,-2353.0,0.000298,5]
[358858719,1745489441575,-13524.0,0.000298,5]
[358858720,1745489441585,-300.0,0.00029899,10]
[358858721,1745489441595,-300.0,0.00029999,10]
[358858722,1745489441604,-796.0,0.0003,2]
[358858724,1745489441615,-1133.0,0.0003,2]
[358858725,1745489441625,-213.0,0.0003,2]
[358858726,1745489441635,-2316.146,0.0003,2]
[358858727,1745489441645,-152.0,0.0003,2]
[358858728,1745489441655,-152.0,0.0003,2]
[358858729,1745489441664,-871.0,0.0003,2]
[358858730,1745489441674,-1613.0,0.00030615,2]
[358858731,1745489441684,-1000.0,0.00030946,5]
[358858732,1745489441695,-192.55937111,0.00030986,2]
[358858733,1745489441708,-192.55937111,0.00031315,2]
[358858734,1745489441718,-6453.0,0.00031357,3]
[358858735,1745489441728,-300.0,0.00031357,2]
[358858736,1745489441738,-17174.44,0.00031583,2]
[358858737,1745489441749,-192.55937111,0.00031644,2]
[358858738,1745489441758,-250.0,0.00032519,2]
[358858739,1745489441768,-162.13,0.00032694,2]
[358858740,1745489441780,-300.0,0.00032727,2]
[358858741,1745489441791,-150.0,0.00032877,2]
[358858742,1745489441800,-796.0,0.00033,2]
[358858743,1745489441810,-1076.79,0.00033,2]
[358858744,1745489441819,-1133.0,0.00033,2]
[358858745,1745489441829,-213.0,0.00033,2]
[358858747,1745489441845,-152.0,0.00033,2]
[358858749,1745489441857,-152.0,0.00033,2]
[358858751,1745489441867,-871.0,0.00033,2]
[358858753,1745489441878,-150.0,0.00033742,2]
[358858755,1745489441888,-231.26,0.00033785,2]
[358858757,1745489441897,-5048.41,0.000338,7]
[358858759,1745489441907,-150.0,0.00034114,30]
[358858761,1745489441917,-156.05397572,0.00034114,30]
[358858763,1745489441927,-3201.0,0.0003418,5]
[358858765,1745489441936,-1446.0,0.00034308,3]
[358858767,1745489441946,-150.0,0.00034607,2]
[358858769,1745489441955,-1000.0,0.00034669,2]
[358858771,1745489441964,-1000.0,0.00034681,2]
[358858773,1745489441973,-390.41,0.00034793,2]
[358858775,1745489441983,-157.84,0.00034793,2]
[358858777,1745489441992,-301.23,0.00034876,2]
[358858779,1745489442001,-1076.79,0.00035,2]
[358858781,1745489442010,-6499.999999,0.00035,3]
[358858783,1745489442019,-166.66,0.00035338,2]
[358858785,1745489442029,-150.0,0.00035472,2]
[358858787,1745489442038,-796.0,0.00036,2]
[358858789,1745489442048,-1076.79,0.00036,2]
[358858791,1745489442057,-307.546,0.00036,2]
[358858793,1745489442066,-213.0,0.00036,2]
[358858795,1745489442075,-152.0,0.00036,2]
[358858797,1745489442084,-731.082,0.00036,2]
[358858799,1745489442094,-647.53,0.00036139,30]
[358858801,1745489442103,-150.0,0.00036337,2]
[358858803,1745489442112,-166.66,0.00036504,2]
[358858805,1745489442122,-1022.5489785,0.00036866,2]
[358858807,1745489442133,-150.0,0.00037203,2]
[358858809,1745489442142,-166.66,0.00037671,2]
[358858811,1745489442151,-1613.124,0.00037856,49]
[358858813,1745489442160,-1076.79,0.00038,2]
[358858815,1745489442170,-150.0,0.00038068,2]
[358858817,1745489442180,-200.0,0.00038425,120]
[358858819,1745489442190,-166.66,0.00038837,2]
[358858821,1745489442199,-150.0,0.00038933,2]
[358858823,1745489442209,-796.0,0.00039,2]
[358858825,1745489442218,-1076.79405514,0.00039,2]
[358858827,1745489442227,-1000.0,0.00039016,2]
[358858829,1745489442237,-157.84,0.0003936,2]
[358858831,1745489442246,-150.0,0.00039798,2]
[358858833,1745489442256,-155.015884,0.00039875,2]
[358858835,1745489442265,-172.305027,0.00039875,2]
[358858837,1745489442275,-155.015882,0.00039875,2]
[358858839,1745489442285,-5299.86735478,0.00039904,15]
[358858841,1745489442295,-153.96,0.0004,30]
[358858843,1745489442307,-714.0,0.0004,4]
[358858845,1745489442317,-10000.0,0.0004,7]
[358858847,1745489442326,-300.0,0.0004,2]
[358858850,1745489442336,-166.66,0.00040004,2]
[358858851,1745489442345,-300.0,0.000404,2]
[358858854,1745489442355,-1588.27552797,0.000405,2]
[358858856,1745489442365,-5299.86735471,0.00040591,15]
[358858858,1745489442375,-150.0,0.00040663,2]
[358858860,1745489442384,-300.0,0.000408,2]
[358858862,1745489442394,-1500.0,0.00040965,5]
[358858864,1745489442404,-171.0,0.00041,14]
[358858866,1745489442414,-400.0,0.0004107,3]
[358858868,1745489442424,-400.0,0.0004107,3]
[358858870,1745489442434,-400.0,0.0004107,3]
[358858872,1745489442443,-400.0,0.0004107,3]
[358858874,1745489442453,-700.0,0.0004107,3]
[358858876,1745489442462,-700.0,0.0004107,3]
[358858878,1745489442472,-700.0,0.0004107,3]
[358858880,1745489442484,-700.0,0.0004107,3]
[358858882,1745489442493,-500.0,0.00041095,2]
[358858884,1745489442503,-500.0,0.00041095,2]
[358858886,1745489442512,-4000.0,0.00041096,60]
[358858888,1745489442522,-166.66,0.0004117,2]
[358858890,1745489442532,-345.0,0.000412,2]
[358858892,1745489442542,-5299.86735471,0.00041278,15]
[358858894,1745489442552,-500.0,0.00041369,2]
[358858896,1745489442562,-535.39528087,0.00041369,2]
[358858899,1745489442572,-2000.0,0.000414,2]
[358858900,1745489442581,-370.76309055,0.000414,2]
[358858903,1745489442591,-1649.69,0.000414,2]
[358858905,1745489442601,-1000.0,0.00041527,3]
[358858907,1745489442610,-150.0,0.00041528,2]
[358858909,1745489442621,-500.0,0.00041643,2]
[358858911,1745489442630,-186.68,0.0004168,2]
[358858913,1745489442641,-500.0,0.00041917,2]
[358858915,1745489442652,-500.0,0.0004194,30]
[358858917,1745489442662,-5299.86735471,0.00041966,15]
[358858919,1745489442672,-796.0,0.00042,2]
[358858921,1745489442681,-500.0,0.00042191,2]
[358858923,1745489442692,-154.75,0.00042371,120]
[358858925,1745489442704,-150.0,0.00042394,2]
[358858927,1745489442714,-500.0,0.00042465,2]
[358858929,1745489442723,-1000.0,0.00042466,14]
[358858931,1745489442733,-1000.0,0.00042603,14]
[358858933,1745489442742,-5299.86735471,0.00042653,15]
[358858935,1745489442753,-500.0,0.00042739,2]
[358858937,1745489442763,-1000.0,0.0004274,14]
[358858939,1745489442772,-684.0,0.00042876,7]
[358858941,1745489442782,-1000.0,0.00042877,14]
[358858944,1745489442792,-11805.57432753,0.00042914,15]
[358858946,1745489442801,-10000.0,0.00043,7]
[358858948,1745489442811,-500.0,0.00043013,2]
[358858950,1745489442821,-1000.0,0.00043014,14]
[358858952,1745489442830,-500.0,0.00043088,10]
[358858954,1745489442839,-509.78385307,0.00043088,10]
[358858956,1745489442848,-530.17287326,0.00043088,10]
[358858958,1745489442858,-499.24605435,0.00043088,10]
[358858960,1745489442868,-800.0,0.00043088,10]
[358858962,1745489442877,-500.0,0.00043088,10]
[358858964,1745489442887,-504.86494383,0.00043089,10]
[358858966,1745489442896,-1000.0,0.00043151,14]
[358858968,1745489442906,-171.0,0.00043151,90]
[358858970,1745489442915,-4207.0,0.000432,14]
[358858972,1745489442925,-150.0,0.00043259,2]
[358858974,1745489442935,-11805.57432749,0.00043268,15]
[358858976,1745489442945,-500.0,0.00043287,2]
[358858978,1745489442954,-1000.0,0.00043288,14]
[358858980,1745489442963,-5299.86735471,0.0004334,15]
[358858982,1745489442973,-1000.0,0.00043351,2]
[358858984,1745489442982,-1000.0,0.00043425,14]
[358858986,1745489442993,-500.0,0.00043561,2]
[358858988,1745489443002,-1000.0,0.00043562,14]
[358858990,1745489443011,-11805.57432749,0.00043622,15]
[358858992,1745489443020,-988.42771834,0.00043635,10]
[358858994,1745489443030,-500.0,0.00043835,2]
[358858996,1745489443039,-600.0,0.00043835,2]
[358858998,1745489443049,-600.0,0.00043835,2]
[358859000,1745489443059,-600.0,0.00043835,2]
[358859002,1745489443069,-600.0,0.00043835,2]
[358859004,1745489443079,-600.0,0.00043835,2]
[358859006,1745489443089,-600.0,0.00043835,2]
[358859009,1745489443098,-600.0,0.00043835,2]
[358859011,1745489443109,-554.56151935,0.00043835,2]
[358859013,1745489443118,-1000.0,0.00043836,9]
[358859016,1745489443128,-1000.0,0.00043836,9]
[358859018,1745489443138,-1000.0,0.00043836,9]
[358859020,1745489443148,-1000.0,0.00043836,9]
[358859022,1745489443157,-1000.0,0.00043836,9]
[358859024,1745489443167,-1000.0,0.00043836,9]
[358859026,1745489443176,-1000.0,0.00043836,9]
[358859028,1745489443185,-1000.0,0.00043836,9]
[358859030,1745489443195,-1000.0,0.00043836,9]
[358859032,1745489443205,-1000.0,0.00043836,9]
[358859034,1745489443214,-1000.0,0.00043836,9]
[358859036,1745489443223,-1000.0,0.00043836,9]
[358859038,1745489443232,-1000.0,0.00043836,9]
[358859040,1745489443242,-1000.0,0.00043836,9]
[358859042,1745489443251,-1000.0,0.00043836,9]
[358859044,1745489443261,-1000.0,0.00043836,9]
[358859048,1745489443271,-1000.0,0.00043836,9]
[358859051,1745489443280,-1000.0,0.00043836,9]
[358859054,1745489443290,-1000.0,0.00043836,9]
[358859057,1745489443300,-1000.0,0.00043836,9]
[358859059,1745489443309,-1000.0,0.00043836,9]
[358859061,1745489443319,-1000.0,0.00043836,9]
[358859063,1745489443329,-1000.0,0.00043836,9]
[358859066,1745489443338,-1000.0,0.00043836,9]
[358859069,1745489443348,-1000.0,0.00043836,9]
[358859071,1745489443358,-1000.0,0.00043836,9]
[358859073,1745489443368,-1000.0,0.00043836,9]
[358859075,1745489443378,-1000.0,0.00043836,9]
[358859077,1745489443387,-1000.0,0.00043836,9]
[358859079,1745489443398,-1000.0,0.00043836,9]
[358859082,1745489443407,-299.94476614,0.00043836,2]
[358859084,1745489443417,-157.84,0.00043926,2]
[358859086,1745489443427,-11805.57432749,0.00043975,15]
[358859088,1745489443437,-31049.8003086,0.0004399,4]
[358859090,1745489443447,-69000.0,0.00044,15]
[358859092,1745489443457,-455.28213089,0.00044,2]
[358859094,1745489443466,-5299.86735471,0.00044027,15]
[358859096,1745489443475,-2000.0,0.000441,2]
[358859098,1745489443486,-500.0,0.00044109,2]
[358859100,1745489443495,-150.0,0.00044124,2]
[358859102,1745489443506,-11805.57432749,0.00044329,15]
[358859104,1745489443516,-500.0,0.00044365,30]
[358859106,1745489443526,-5023.09585,0.00044373,30]
[358859108,1745489443536,-500.0,0.00044383,2]
[358859110,1745489443546,-500.0,0.0004446,30]
[358859112,1745489443556,-500.0,0.00044657,2]
[358859114,1745489443565,-11805.57432749,0.00044683,15]
[358859116,1745489443575,-5299.86735471,0.00044715,15]
[358859118,1745489443584,-188.0,0.00044792,30]
[358859120,1745489443594,-647.53,0.00044854,120]
[358859122,1745489443604,-500.0,0.00044931,2]
[358859124,1745489443615,-150.0,0.00044989,2]
[358859126,1745489443625,-31049.8003086,0.0004499,4]
[358859128,1745489443636,-50000.0,0.00045,10]
[358859130,1745489443646,-796.0,0.00045,2]
[358859132,1745489443656,-454.0,0.00045,30]
[358859134,1745489443666,-151.0,0.00045,120]
[358859136,1745489443676,-11805.57432749,0.00045037,15]
[358859138,1745489443686,-999.0,0.00045104,2]
[358859140,1745489443696,-3139.7737214,0.00045198,17]
[358859143,1745489443710,-500.0,0.00045204,30]
[358859145,1745489443721,-500.0,0.00045205,2]
[358859147,1745489443732,-508.9741,0.00045249,30]
[358859149,1745489443742,-500.0,0.00045357,30]
[358859150,1745489443752,-999.0,0.00045378,2]
[358859151,1745489443762,-5299.86735471,0.00045402,15]
[358859152,1745489443772,-490.32601666,0.00045479,2]
[358859153,1745489443782,-200.0,0.00045633,10]
[358859154,1745489443793,-284.54600712,0.00045635,10]
[358859155,1745489443802,-669.43051258,0.00045637,10]
[358859158,1745489443812,-1823.514667,0.00045642,10]
[358859160,1745489443821,-1534.16334736,0.00045642,10]
[358859162,1745489443830,-929.52503013,0.00045644,10]
[358859164,1745489443839,-284.54600712,0.00045649,10]
[358859166,1745489443849,-284.54600712,0.00045649,10]
[358859168,1745489443859,-999.0,0.00045652,2]
[358859170,1745489443869,-2008.12139803,0.00045657,10]
[358859173,1745489443879,-929.52503013,0.00045663,10]
[358859176,1745489443889,-89227.94408996,0.00045664,10]
[358859178,1745489443898,-89227.94408996,0.00045665,10]
[358859180,1745489443909,-290.08474881,0.00045667,10]
[358859182,1745489443918,-2008.12139803,0.0004567,10]
[358859184,1745489443927,-290.08474881,0.00045678,10]
[358859186,1745489443937,-1270.49337253,0.00045681,10]
[358859188,1745489443947,-1270.49337253,0.00045682,10]
[358859190,1745489443956,-1823.514667,0.00045689,10]
[358859192,1745489443966,-290.08474881,0.00045689,10]
[358859230,1745489444316,-200.0,0.00045694,10]
[358859232,1745489444326,-669.43051258,0.00045699,10]
[358859234,1745489444336,-2699.22,0.000457,120]
[358859236,1745489444346,-2159.38,0.000457,120]
[358859238,1745489444357,-1823.514667,0.00045717,10]
[358859240,1745489444366,-7622.96023517,0.00045725,10]
[358859243,1745489444376,-7622.96023517,0.00045735,10]
[358859245,1745489444387,-1872.546025,0.00045738,10]
[358859247,1745489444397,-1270.49337253,0.00045742,10]
[358859249,1745489444407,-1270.49337253,0.00045743,10]
[358859251,1745489444417,-1270.49337253,0.00045743,10]
[358859253,1745489444427,-290.08474881,0.00045744,10]
[358859255,1745489444436,-7622.96023517,0.0004575,10]
[358859257,1745489444446,-89057.32094807,0.00045751,10]
[358859270,1745489444560,-170.62314189,0.00045751,10]
[358859272,1745489444571,-399.6292,0.00045752,2]
[358859274,1745489444581,-2008.12139803,0.00045753,10]
[358859276,1745489444590,-290.08474881,0.00045753,10]
[358859278,1745489444600,-31049.8003086,0.00045753,4]
[358859280,1745489444611,-855.48946232,0.0004576,10]
[358859282,1745489444621,-855.48946232,0.0004576,10]
[358859284,1745489444631,-1270.49337253,0.00045764,10]
[358859286,1745489444641,-669.43051258,0.00045766,10]
[358859288,1745489444652,-855.48946232,0.0004577,10]
[358859290,1745489444662,-9279.15688758,0.00045776,10]
[358859292,1745489444671,-1823.514667,0.00045776,10]
[358859294,1745489444681,-89227.94408996,0.00045776,10]
[358859296,1745489444690,-9279.15688758,0.00045783,10]
[358859299,1745489444702,-1872.546025,0.00045799,10]
[358859301,1745489444714,-1872.546025,0.000458,10]
[358859303,1745489444724,-2459.68657758,0.00045803,10]
[358859305,1745489444734,-284.54600712,0.00045807,10]
[358859307,1745489444746,-1872.546025,0.00045807,10]
[358859309,1745489444755,-1534.16334736,0.00045809,10]
[358859311,1745489444765,-669.43051258,0.00045813,10]
[358859313,1745489444775,-855.48946232,0.00045814,10]
[358859315,1745489444787,-89227.94408996,0.00045821,10]
[358859317,1745489444797,-2008.12139803,0.00045829,10]
[358859319,1745489444807,-9279.15688758,0.00045838,10]
[358859321,1745489444817,-200.0,0.00045839,10]
[358859323,1745489444828,-1823.514667,0.00045841,10]
[358859326,1745489444838,-159.55678284,0.00045841,27]
[358859328,1745489444848,-1534.16334736,0.00045842,10]
[358859330,1745489444858,-7622.96023517,0.00045849,10]
[358859332,1745489444868,-525.19717815,0.00045851,10]
[358859334,1745489444878,-150.0,0.00045854,2]
[358859336,1745489444887,-525.19717815,0.00045858,10]
[358859338,1745489444898,-9279.15688758,0.00045859,10]
[358859340,1745489444908,-1534.16334736,0.00045861,10]
[358859342,1745489444918,-200.0,0.00045868,10]
[358859344,1745489444928,-200.0,0.00045871,10]
[358859346,1745489444938,-290.08474881,0.00045873,10]
[358859348,1745489444948,-1534.16334736,0.00045874,10]
[358859350,1745489444959,-1534.16334736,0.00045875,10]
[358859352,1745489444969,-929.52503013,0.00045875,10]
[358859354,1745489444979,-2459.68657758,0.00045875,10]
[358859356,1745489444989,-2459.68657758,0.00045876,10]
[358859358,1745489444999,-200.0,0.00045877,10]
[358859360,1745489445009,-525.19717815,0.00045878,10]
[358859362,1745489445019,-669.43051258,0.00045879,10]
[358859364,1745489445030,-89227.94408996,0.00045888,10]
[358859366,1745489445040,-7622.96023517,0.0004589,10]
[358859368,1745489445050,-1823.514667,0.00045893,10]
[358859370,1745489445059,-290.08474881,0.00045895,10]
[358859372,1745489445068,-2459.68657758,0.00045895,10]
[358859374,1745489445078,-929.52503013,0.00045904,10]
[358859376,1745489445088,-7622.96023517,0.00045908,10]
[358859378,1745489445099,-929.52503013,0.0004591,10]
[358859380,1745489445108,-284.54600712,0.0004591,10]
[358859382,1745489445118,-200.0,0.00045911,10]
[358859384,1745489445127,-7622.96023517,0.00045913,10]
[358859386,1745489445138,-2008.12139803,0.00045918,10]
[358859388,1745489445148,-2459.68657758,0.00045919,10]
[358859390,1745489445158,-284.54600712,0.0004592,10]
[358859392,1745489445168,-855.48946232,0.00045921,10]
[358859394,1745489445178,-855.48946232,0.00045922,10]
[358859396,1745489445187,-2008.12139803,0.00045923,10]
[358859398,1745489445197,-999.0,0.00045926,2]
[358859401,1745489445207,-500.0,0.00045927,30]
[358859403,1745489445218,-1872.546025,0.00045932,10]
[358859405,1745489445227,-2008.12139803,0.00045935,10]
[358859407,1745489445237,-2459.68657758,0.00045944,10]
[358859409,1745489445247,-284.54600712,0.00045946,10]
[358859411,1745489445257,-1270.49337253,0.00045947,10]
[358859413,1745489445267,-1534.16334736,0.00045948,10]
[358859415,1745489445277,-929.52503013,0.00045949,10]
[358859417,1745489445287,-1872.546025,0.00045952,10]
[358859419,1745489445297,-2459.68657758,0.00045955,10]
[358859421,1745489445308,-9279.15688758,0.00045959,10]
[358859423,1745489445318,-929.52503013,0.00045959,10]
[358859425,1745489445327,-31049.8003086,0.0004597,4]
[358859428,1745489445337,-525.19717815,0.00045971,10]
[358859430,1745489445347,-152.605632,0.00045971,22]
[358859432,1745489445356,-9279.15688758,0.00045978,10]
[358859434,1745489445366,-1823.514667,0.00045979,10]
[358859436,1745489445376,-5000.0,0.00045979,120]
[358859438,1745489445386,-669.43051258,0.00045981,10]
[358859440,1745489445395,-525.19717815,0.00045982,10]
[358859442,1745489445405,-669.43051258,0.00045985,10]
[358859444,1745489445416,-525.19717815,0.00045985,10]
[358859446,1745489445426,-525.19717815,0.00045986,10]
[358859448,1745489445436,-9279.15688758,0.00045989,10]
[358859450,1745489445446,-31049.8003086,0.0004599,4]
[358859452,1745489445456,-516.29107046,0.00045999,2]
[358859455,1745489445466,-16098.34,0.00045999,2]
[358859457,1745489445476,-3500.0,0.00045999,10]
[358859459,1745489445485,-2195.56,0.00045999,7]
[358859461,1745489445495,-531.80863245,0.00045999,7]
[358859463,1745489445505,-1872.546025,0.00045999,10]
[358859465,1745489445515,-89227.94408996,0.00046,10]
[358859467,1745489445525,-855.48946232,0.00046,10]
[358859469,1745489445535,-50000.0,0.00046,12]
[358859471,1745489445545,-6542.31715705,0.00046,3]
[358859473,1745489445556,-658.18,0.00046,3]
[358859475,1745489445566,-658.18,0.00046,3]
[358859477,1745489445576,-658.19,0.00046,3]
[358859479,1745489445586,-1162.59371783,0.00046,120]
[358859481,1745489445596,-18576.0658216,0.00046025,4]
[358859484,1745489445607,-390.41,0.00046026,2]
[358859486,1745489445617,-606.0,0.00046055,120]
[358859488,1745489445626,-1863.7194,0.00046066,2]
[358859490,1745489445636,-500.0,0.00046066,2]
[358859492,1745489445646,-6877.976,0.00046066,2]
[358859494,1745489445656,-593.9887,0.00046066,2]
[358859496,1745489445666,-500.0,0.0004607,2]
[358859498,1745489445675,-152.18159071,0.0004607,2]
[358859500,1745489445685,-239.5316193,0.00046073,10]
[358859502,1745489445696,-31049.8003086,0.00046079,4]
[358859504,1745489445709,-18576.0658216,0.00046079,4]
[358859506,1745489445718,-5299.86735471,0.00046089,15]
[358859508,1745489445728,-781.90535399,0.00046096,30]
[358859510,1745489445739,-151.8858405,0.00046098,2]
[358859512,1745489445749,-959.35844091,0.00046163,60]
[358859514,1745489445759,-10654.0,0.00046164,120]
[358859516,1745489445768,-1503.0,0.00046166,30]
[358859518,1745489445779,-2000.0,0.00046166,7]
[358859521,1745489445789,-200.0,0.00046166,7]
[358859523,1745489445799,-200.0,0.00046166,7]
[358859525,1745489445808,-500.0,0.00046173,10]
[358859527,1745489445820,-150.0,0.00046173,10]
[358859529,1745489445829,-150.0,0.00046173,10]
[358859531,1745489445839,-600.54793712,0.00046173,10]
[358859533,1745489445849,-150.0,0.00046185,9]
[358859535,1745489445859,-150.0,0.00046188,3]
[358859537,1745489445870,-150.0,0.00046188,3]
[358859539,1745489445879,-1217.4295604,0.00046188,7]
[358859541,1745489445889,-1217.4295604,0.00046188,7]
[358859543,1745489445899,-1217.4295604,0.00046188,7]
[358859545,1745489445908,-1666.75,0.00046189,120]
[358859547,1745489445918,-500.0,0.00046197,2]
[358859549,1745489445927,-500.0,0.00046197,2]
[358859551,1745489445937,-374.84897064,0.00046198,2]
[358859554,1745489445947,-500.0,0.00046198,7]
[358859556,1745489445956,-500.0,0.00046198,7]
[358859558,1745489445966,-500.0,0.00046198,7]
[358859560,1745489445975,-500.0,0.00046198,7]
[358859562,1745489445985,-500.0,0.00046198,7]
[358859564,1745489445995,-500.0,0.00046198,7]
[358859566,1745489446005,-500.0,0.00046198,7]